Cogmind - Beta 13 @@@ ROGUE MODE // 2024.04.04 @ 22:07:25 Player: Lunace Result: Destroyed by H-55 Commando with Assault Rifle Performance ------------- Evolutions (3) 1500 Regions Visited (7) 1400 Robots Destroyed (20) 100 Value Destroyed (415) 415 Prototype IDs (4) 80 Alien Tech Used (0) 0 Bonus (220) 220 TOTAL SCORE: 3715 Bonus ------- Follower Combat Kills 257 Friendly Fire -37 Cogmind --------- Core Integrity 0/700 Matter 189/300 Energy 99/100 System Corruption 3% Temperature Cool (0) Movement Rolling (100) Location -7/Storage Parts ------- > --- POWER (1) -------- (None) > --- PROPULSION (4) --- Compact Wheel > --- UTILITY (6) ------ Improved Signal Interpreter Improved Terrain Scan Processor > --- WEAPON (2) ------- (None) > --- INVENTORY (5) ---- Micro Nuclear Core Improved Heat Sink Improved Sensor Array Remote Datajack Peak State ------------ > --- POWER ------------ Light Nuclear Core > --- PROPULSION ------- Carbon-fiber Leg Carbon-fiber Leg Carbon-fiber Leg Carbon-fiber Leg > --- UTILITY ---------- Improved Sensor Array Signal Interpreter System Shield Thief Drone Bay > --- WEAPON ----------- Light Assault Rifle Gauss Rifle > --- INVENTORY -------- Aluminum Leg Improved Hover Unit Improved Sensor Array Improved Signal Interpreter Datajack [Rating: 35] Favorites ----------- Power Light Nuclear Core Engine Light Ion Engine Power Core Light Nuclear Core Propulsion Flight Unit Leg Aluminum Leg Wheel Compact Wheel Hover Unit Improved Hover Unit Flight Unit Flight Unit Utility System Shield Device Improved Sensor Array Storage Small Storage Unit Processor Improved Signal Interpreter Hackware System Shield Weapon Light Assault Rifle Ballistic Gun Light Assault Rifle Special Weapon Remote Datajack Impact Weapon Maul Build | -11 -10 -10 -9 -9 -8 -7 -7 ------- Run | Yrd Mat Min Mat Min Mat Fac Sto Slots Evolved 6 | . . . 2 . 2 2 . Power . | . . . . . . . . Propulsion 2 | . . . 1 . 1 . . Utility 4 | . . . 1 . 1 2 . Weapon . | . . . . . . . . Parts Attached 55 | 7 7 2 3 5 13 11 7 Power 8 | 1 2 . 1 . 1 2 1 Engine 3 | 1 1 . . . . 1 . Core 5 | . 1 . 1 . 1 1 1 Reactor . | . . . . . . . . Propulsion 22 | 2 3 1 1 1 9 3 2 Treads . | . . . . . . . . Leg 11 | 2 1 . . . 8 . . Wheel 1 | . . . . . . . 1 Hover 1 | . . . . . . 1 . Flight 9 | . 2 1 1 1 1 2 1 Utility 15 | 1 1 1 1 3 2 5 1 Device 10 | . 1 1 . 2 2 3 1 Storage 1 | 1 . . . . . . . Processor 3 | . . . . 1 . 2 . Hackware 1 | . . . 1 . . . . Protection . | . . . . . . . . Artifact . | . . . . . . . . Weapon 10 | 3 1 . . 1 1 1 3 Energy Gun . | . . . . . . . . Energy Cannon . | . . . . . . . . Ballistic Gun 6 | 3 1 . . 1 1 . . Ballistic Cannon . | . . . . . . . . Launcher . | . . . . . . . . Special Weapon 3 | . . . . . . 1 2 Impact Weapon 1 | . . . . . . . 1 Slashing Weapon . | . . . . . . . . Piercing Weapon . | . . . . . . . . Special Melee Weapon . | . . . . . . . . Unidentified Prototypes 4 | . . . . 1 . 2 1 Parts Lost 17 | . . 1 . 1 7 3 5 Power 1 | . . . . . . 1 . Propulsion 9 | . . 1 . . 6 1 1 Utility 3 | . . . . . . . 3 Weapon 4 | . . . . 1 1 1 1 Highest Loss Streak 5 | . . 1 . 1 3 1 5 To Critical Strikes . | . . . . . . . . Average Slot Usage (%) 69 | . 83 85 100 99 94 44 47 Engine 1 | . 10 7 . . . . . Core 3 | . 3 . 11 11 9 . . Leg 7 | . 15 . . . 16 5 . Flight 12 | . 12 28 33 33 15 5 4 Device 11 | . 4 21 22 11 18 8 12 Storage 1 | . 8 . . . . . . Processor 8 | . . . . 10 9 8 15 Hackware 6 | . . . 11 11 9 7 6 Ballistic Gun 12 | . 28 28 22 21 16 1 . Special Weapon 1 | . . . . . . 1 5 Naked Turns . | . . . . . . . . Heaviest Build 15 | 12 14 7 12 12 15 7 5 Greatest Support 60 | 20 20 8 12 12 60 7 16 Greatest Overweight (x) 3 | . . . . . 3 . . Average Overweight (x) . | . . . . . . . . Largest Inventory Capacity 8 | 8 8 5 5 5 5 5 5 Average Capacity 5 | 7 6 5 5 5 5 5 5 Most Carried 6 | 4 6 5 4 5 5 5 4 Average Carried 3 | . 2 4 2 4 4 4 3 Final Capacity 8 | 8 5 5 5 5 5 5 5 Final Carried 5 | . 4 5 2 5 5 3 4 Class Distribution -------------------- 51% | Mutant 28% | Scavenger-Mutant 14% | Scout 4% | Scavenger-Sprinter Dominant Class ---------------- Mutant | -10/Materials Mutant | -10/Mines Mutant | -9/Materials Scavenger-Mutant | -9/Mines Scavenger-Mutant | -8/Materials Mutant | -7/Factory Mutant | -7/Storage Resources | -11 -10 -10 -9 -9 -8 -7 -7 ----------- Run | Yrd Mat Min Mat Min Mat Fac Sto Matter Collected 904 | 202 314 20 . 109 176 . 83 Remotely . | . . . . . . . . Salvage Created 689 | . 306 . . 77 166 . 140 Parts 43 | . 26 . . 5 7 . 5 Haulers Intercepted . | . . . . . . . . Recyclers Shooed 3 | . 2 . . 1 . . . Parts Field Recycled . | . . . . . . . . Retrieved Matter . | . . . . . . . . Parts Self-Destructed . | . . . . . . . . Prevented . | . . . . . . . . Kills | -11 -10 -10 -9 -9 -8 -7 -7 ------- Run | Yrd Mat Min Mat Min Mat Fac Sto Combat Hostiles Destroyed 13 | . 8 . . 1 3 . 1 Guns 12 | . 8 . . 1 3 . . Classes Destroyed 6 | . 6 . . . . . . Worker 1 | . 1 . . . . . . Recycler 3 | . 1 . . 1 . . 1 Operator 1 | . 1 . . . . . . Watcher 2 | . 1 . . . 1 . . Swarmer 7 | . 6 . . 1 . . . Grunt 6 | . 2 . . . 3 . 1 Best Kill Streak 8 | . 8 . . 2 1 . 2 Combat Bots Only 4 | . 4 . . 1 1 . 1 Max Kills in Single Turn 2 | . 2 . . 1 1 . 1 Gunslinging . | . . . . . . . . Exploded . | . . . . . . . . Melee . | . . . . . . . . Uniques/NPCs Destroyed . | . . . . . . . . Combat | -11 -10 -10 -9 -9 -8 -7 -7 -------- Run | Yrd Mat Min Mat Min Mat Fac Sto Hostile Shots Fired 321 | . 58 2 . 14 93 28 126 Missed 113 | . 25 . . 4 37 11 36 Damage Taken 2498 | . 328 62 . 78 848 228 954 Core 953 | . 63 19 . 18 143 49 661 Absorbed by Shields . | . . . . . . . . Regen/Repaired (Parts) 17 | . 5 . . . . . 12 Core Remaining (%) 84 | 100 . 67 . 95 74 . . Volleys Fired 88 | . 32 . 2 11 40 2 1 Largest 2 | . 2 . 2 2 2 2 1 Hottest 48 | . 40 . 40 40 48 48 5 Shots Fired 167 | . 64 . 4 20 74 4 1 Gun 166 | . 64 . 4 20 74 4 . Cannon . | . . . . . . . . Launcher . | . . . . . . . . Special 1 | . . . . . . . 1 Kinetic 166 | . 64 . 4 20 74 4 . Thermal . | . . . . . . . . Explosive . | . . . . . . . . Electromagnetic . | . . . . . . . . Robot Hit Streak 7 | . 7 . 1 4 6 . 1 Robot Miss Streak 4 | . 4 . 2 3 3 4 . Penetration Max 1 | . . . . . 1 . . Secondary Targets 4 | . 3 . . 1 . . . Max Gunslinging Chain 1 | . 1 . . 1 . . . Shots Hit Robots 104 | . 38 . 1 10 46 . 9 Core Hits 49 | . 19 . . 7 21 . 2 Critical Kills . | . . . . . . . . Critical Parts Destroyed 2 | . . . . 1 . . 1 Critical Strikes 3 | . . . . 1 . . 2 Destroy 1 | . . . . 1 . . . Smash 2 | . . . . . . . 2 Melee Attacks 13 | . . . . . . . 13 Impact 13 | . . . . . . . 13 Slashing . | . . . . . . . . Piercing . | . . . . . . . . Sneak Attacks . | . . . . . . . . Combat Hostiles . | . . . . . . . . Follow-up Attacks . | . . . . . . . . Damage Inflicted 1495 | . 497 . 7 110 513 . 368 Guns 1123 | . 497 . 7 110 509 . . Cannons . | . . . . . . . . Explosions . | . . . . . . . . Melee 339 | . . . . . . . 339 Ramming 33 | . . . . . 4 . 29 Kinetic 1123 | . 497 . 7 110 509 . . Thermal . | . . . . . . . . Explosive . | . . . . . . . . Electromagnetic . | . . . . . . . . Impact 339 | . . . . . . . 339 Slashing . | . . . . . . . . Piercing . | . . . . . . . . Highest Corruption 3 | . . . . . . 2 3 Average Corruption 2 | . . . . . . 2 2 Corruption Purged . | . . . . . . . . Corruption Blocked . | . . . . . . . . Effects 3 | . . . . . . 1 2 Matter Fused 1 | . . . . . . 1 . Parts Rejected 1 | . . . . . . . 1 Alerts 1 | . . . . . . . 1 Overload Shots . | . . . . . . . . Overflow Damage 95 | . . . . . . . 95 Projectiles . | . . . . . . . . Explosions . | . . . . . . . . Melee 95 | . . . . . . . 95 Knockbacks 2 | . . . . . . . 2 Impact 1 | . . . . . . . 1 Kinetic . | . . . . . . . . Secondary 1 | . . . . . . . 1 Self-Inflicted Damage 13 | . . . . . . . 13 Shots . | . . . . . . . . Rammed 7 | . . . . . . . 7 Targets Rammed 8 | . . . . . 1 . 7 Kicked 1 | . . . . . 1 . . Crushed . | . . . . . . . . Highest Temperature 23 | . 8 3 4 10 23 . . Average Temperature 5 | . 3 3 3 4 8 . . Received Heat Transfer 732 | . 96 15 . 12 360 . 249 Siege Activations . | . . . . . . . . Robots Corrupted . | . . . . . . . . Combat Hostiles . | . . . . . . . . Parts Fried 2 | . . . . . . . 2 Impact Corruptions 6 | . . . . . . . 6 Robots Melted . | . . . . . . . . Combat Hostiles . | . . . . . . . . Parts Melted . | . . . . . . . . Heat Transferred . | . . . . . . . . Parts Sabotaged . | . . . . . . . . Parts Stolen . | . . . . . . . . Parts Stripped . | . . . . . . . . Power Chain Reactions . | . . . . . . . . Alert | -11 -10 -10 -9 -9 -8 -7 -7 ------- Run | Yrd Mat Min Mat Min Mat Fac Sto Peak Influence 254 | . 228 91 35 48 233 96 254 Initial 77 | . . 61 35 13 16 77 9 Average 88 | . 107 69 35 33 145 48 143 Maximum Alert Level 1 | . 1 . . . 1 . 1 Low Security (%) 86 | 100 87 100 100 100 69 100 65 Level 1 13 | . 12 . . . 30 . 34 Level 2 . | . . . . . . . . Level 3 . | . . . . . . . . Level 4 . | . . . . . . . . Level 5 . | . . . . . . . . High Security . | . . . . . . . . Max Security . | . . . . . . . . Squads Dispatched 10 | . 1 1 1 1 3 1 2 Investigation 3 | . 1 . . 1 1 . . Extermination . | . . . . . . . . Reinforcement 5 | . . . 1 . 1 1 2 Assault 2 | . . 1 . . 1 . . Garrison . | . . . . . . . . Intercept . | . . . . . . . . Searches Triggered . | . . . . . . . . Construction Impeded . | . . . . . . . . Haulers Reinforced . | . . . . . . . . Active Scanning Responses . | . . . . . . . . Cargo Convoy Interrupts . | . . . . . . . . Stealth | -11 -10 -10 -9 -9 -8 -7 -7 --------- Run | Yrd Mat Min Mat Min Mat Fac Sto Distress Signals 6 | . 2 . . . 2 1 1 Communications Jammed . | . . . . . . . . Distress Signals . | . . . . . . . . Times Spotted 91 | . 18 5 1 10 35 3 19 Peak Tracking Total 11 | . 4 4 3 4 11 2 8 Tactical Retreats 17 | . 1 3 . . 5 2 6 Traps | -11 -10 -10 -9 -9 -8 -7 -7 ------- Run | Yrd Mat Min Mat Min Mat Fac Sto Traps Triggered 4 | . 1 . . . 1 2 . Indirectly . | . . . . . . . . Trap Hack Attempts . | . . . . . . . . Triggered . | . . . . . . . . Disarmed . | . . . . . . . . Reprogrammed . | . . . . . . . . Reused . | . . . . . . . . Traps Extracted . | . . . . . . . . Installed . | . . . . . . . . Triggered . | . . . . . . . . Machines | -11 -10 -10 -9 -9 -8 -7 -7 ---------- Run | Yrd Mat Min Mat Min Mat Fac Sto Machines Disabled . | . . . . . . . . Max in Single Turn . | . . . . . . . . Machines Repaired . | . . . . . . . . Machines Dismantled . | . . . . . . . . Machines Sabotaged . | . . . . . . . . Overloaded Fab Kills . | . . . . . . . . Hacking | -11 -10 -10 -9 -9 -8 -7 -7 --------- Run | Yrd Mat Min Mat Min Mat Fac Sto Machines Accessed 24 | . 6 1 1 2 2 8 4 Terminals 13 | . 3 . . . 2 5 3 Fabricators 2 | . . . . . . 2 . Repair Stations 2 | . 1 . . . . . 1 Recycling Units 4 | . 2 . 1 . . 1 . Scanalyzers . | . . . . . . . . Garrison Access . | . . . . . . . . Total Hacks 48 | . 18 1 2 2 4 14 7 Successful 29 | . 12 1 1 2 2 8 3 Failed 19 | . 6 . 1 . 2 6 4 Catastrophic 4 | . . . . . 1 2 1 Database Lockouts . | . . . . . . . . Manual . | . . . . . . . . Terminals 23 | . 9 . . . 4 7 3 Fabricators 4 | . . . . . . 4 . Repair Stations 6 | . 2 . . . . . 4 Recycling Units 12 | . 7 . 2 . . 3 . Scanalyzers . | . . . . . . . . Garrison Access . | . . . . . . . . Terminal Hacks 16 | . 6 1 . 2 2 4 1 Record 1 | . 1 . . . . . . Robot Analysis 1 | . 1 . . . . . . Open Door 4 | . . 1 . 2 . . 1 Branch Access Points 1 | . . . . . . 1 . Alert Level 2 | . . . . . 1 1 . Unreport Threat 1 | . 1 . . . . . . Dispatch Records 1 | . 1 . . . . . . Hauler Manifests 1 | . . . . . . 1 . Zone Layout 4 | . 2 . . . 1 1 . Fabricator Hacks 2 | . . . . . . 2 . Network Status 1 | . . . . . . 1 . Build 1 | . . . . . . 1 . Repair Station Hacks 4 | . 2 . . . . . 2 Scan Component 2 | . 1 . . . . . 1 Repair 2 | . 1 . . . . . 1 Recycling Unit Hacks 7 | . 4 . 1 . . 2 . Process 2 | . 1 . . . . 1 . Report Inventory 4 | . 2 . 1 . . 1 . Retrieve Components 1 | . 1 . . . . . . Scanalyzer . | . . . . . . . . Garrison Access Hacks . | . . . . . . . . Unauthorized Hacks . | . . . . . . . . Terminals . | . . . . . . . . Fabricators . | . . . . . . . . Repair Stations . | . . . . . . . . Recycling Units . | . . . . . . . . Scanalyzers . | . . . . . . . . Garrison Access . | . . . . . . . . Data Cores Recovered 1 | . 1 . . . . . . Used . | . . . . . . . . Hacking Detections 13 | . 4 . . . 2 5 2 Full Trace Events . | . . . . . . . . Feedback Events . | . . . . . . . . Feedback Blocked . | . . . . . . . . Robot Schematics Acquired . | . . . . . . . . Robots Built 1 | . . . . . . 1 . Authchips . | . . . . . . . . Time 40 | . . . . . . 40 . Total Robot Build Rating 1 | . . . . . . 1 . Part Schematics Acquired . | . . . . . . . . Parts Built . | . . . . . . . . Authchips . | . . . . . . . . Time . | . . . . . . . . Total Part Build Rating . | . . . . . . . . Parts Repaired 2 | . 1 . . . . . 1 Time 70 | . 26 . . . . . 44 Parts Recycled . | . . . . . . . . Recycled Matter 49 | . 1 . . . . 48 . Retrieved Matter . | . . . . . . . . Retrieved Components 4 | . 4 . . . . . . Parts Scanalyzed . | . . . . . . . . Part Schematics Acquired . | . . . . . . . . Parts Damaged . | . . . . . . . . Bothacking | -11 -10 -10 -9 -9 -8 -7 -7 ------------ Run | Yrd Mat Min Mat Min Mat Fac Sto Used RIF Installer . | . . . . . . . . Robots Hacked . | . . . . . . . . Non-combat . | . . . . . . . . Combat . | . . . . . . . . Robot Hacks Applied . | . . . . . . . . Relay Couplers Released . | . . . . . . . . Fabnet Peak Effective % . | . . . . . . . . Robots Rewired . | . . . . . . . . Allies Hacked . | . . . . . . . . Hacks Repelled . | . . . . . . . . Allies | -11 -10 -10 -9 -9 -8 -7 -7 -------- Run | Yrd Mat Min Mat Min Mat Fac Sto Total Allies 2 | . . 1 . . . 1 . Largest Group 1 | . . 1 . . . 1 . Highest-Rated Group 31 | . . 31 . . . 10 . Highest-Rated Ally 31 | . . 31 . . . 10 . Total Orders 20 | . . . . 11 9 . . FOLLOW 1 | . . . . 1 . . . EXPLORE 4 | . . . . 4 . . . RETURN 15 | . . . . 6 9 . . Ally Attacks 120 | . . 10 . . 110 . . Total Damage 633 | . . 82 . . 551 . . Kills 8 | . . . . . 8 . . Allies Corrupted . | . . . . . . . . Allies Melted . | . . . . . . . . Intel | -11 -10 -10 -9 -9 -8 -7 -7 ------- Run | Yrd Mat Min Mat Min Mat Fac Sto Robot Analysis Total 1 | . 1 . . . . . . Derelict Logs Recovered 2 | . . 1 . 1 . . . Drone Launches 42 | . . . . 6 36 . . Drone Recoveries 39 | . . . . 6 33 . . Exploration | -11 -10 -10 -9 -9 -8 -7 -7 ------------- Run | Yrd Mat Min Mat Min Mat Fac Sto Turns Passed 2338 | 53 324 113 27 227 506 770 318 Spaces Moved 3256 | 32 341 258 54 471 447 1256 397 Core 19 | 6 . . . . 2 2 9 Treads . | . . . . . . . . Legs 268 | 26 60 . . . 182 . . Wheels 18 | . . . . . . . 18 Hover 178 | . . . . . . 178 . Flight 2773 | . 281 258 54 471 263 1076 370 Fastest Speed 31 | 50 37 37 34 34 31 40 40 Average Speed 47 | 106 51 37 34 34 69 47 42 Slowest Speed 200 | 120 120 37 34 34 200 90 100 Overloaded Moves . | . . . . . . . . Propulsion Burnouts . | . . . . . . . . Robots Hopped 22 | . 2 1 . 6 2 5 6 Cave-ins Triggered . | . . . . . . . . Exploration Rate (%) 41 | 3 50 57 10 85 39 26 60 Regions Visited 7 Branch Regions 3 Pre-discovered Areas 1 | . . . . 1 . . . Known Exits Taken 3 | . . . . 1 1 1 . Unknown Exits Taken 4 | 1 1 1 1 . . . . Scrap Searched 2 | . . 1 . 1 . . . Spaces Dug . | . . . . . . . . Terrain Destroyed . | . . . . . . . . Melee . | . . . . . . . . Projectile . | . . . . . . . . AOE . | . . . . . . . . Terrain Rammed . | . . . . . . . . Walls Destroyed . | . . . . . . . . Machines Disabled . | . . . . . . . . Actions | -11 -10 -10 -9 -9 -8 -7 -7 --------- Run | Yrd Mat Min Mat Min Mat Fac Sto Total 3846 | 50 425 274 58 515 581 1429 514 Wait 355 | 4 27 12 . 26 61 139 86 Move 3206 | 31 336 255 53 458 443 1245 385 Hop 21 | . 2 1 . 6 1 5 6 Pick Up 61 | 7 13 3 . 6 14 13 5 Fast Attach . | . . . . . . . . Attach 39 | 6 1 2 3 3 9 8 7 Detach 5 | . . . . 1 . 1 3 Swap 17 | 1 6 . . 2 4 4 . Drop 33 | 1 8 1 . 2 8 12 1 Fire 88 | . 32 . 2 11 40 2 1 Melee 13 | . . . . . . . 13 Ram 7 | . . . . . . . 7 Kick 1 | . . . . . 1 . . Crush . | . . . . . . . . Escape Stasis . | . . . . . . . . Rewire . | . . . . . . . . Trap . | . . . . . . . . Miscellaneous . | . . . . . . . . Route ------- -11/Scrapyard -10/Materials (discovered 2 exits: *Mat / *Min) -10/Mines -9/Materials -9/Mines (discovered 2 exits: *Mat x2) -8/Materials -7/Factory (discovered 6 exits: *Fac x2 / *Sto x2 / *Low x2) -7/Storage History --------- Turn | Location | Event 17 | -11/Scrapyard | Discovered new exit (range 15) 54 | -11/Scrapyard | Entered Materials 157 | -10/Materials | Discovered new exit (range 18) 300 | -10/Materials | Repaired Flight Unit 312 | -10/Materials | Build established: Mutant 313 | -10/Materials | Discovered new exit (range 16) 378 | -10/Materials | Entered Mines 409 | -10/Mines | Met a Derelict bent on vengeance 416 | -10/Mines | Met a Derelict testing a Signal Generator 420 | -10/Mines | Found Signal Generator 431 | -10/Mines | Met a Derelict who couldn't figure out how to use a Trap Extractor 482 | -10/Mines | Learned Materials emergency access door positions 489 | -10/Mines | Discovered new exit (range 5) 491 | -10/Mines | Entered Materials 491 | -9/Materials | Evolved 2 slots: Propulsion x1, Utility x1 514 | -9/Materials | Discovered new exit (range 12) 518 | -9/Materials | Entered Mines 588 | -9/Mines | Found the Drone Emporium 589 | -9/Mines | Found Prototype Device 591 | -9/Mines | Identified Thief Drone Bay 602 | -9/Mines | Met a Derelict shopkeep closing up shop 691 | -9/Mines | Learned location of Storage (-7) 711 | -9/Mines | Discovered new exit (range 7) 740 | -9/Mines | Discovered new exit (range 5) 741 | -9/Mines | Identified exit to Materials 745 | -9/Mines | Entered Materials 745 | -8/Materials | Evolved 2 slots: Propulsion x1, Utility x1 1183 | -8/Materials | Lost 3 parts (3n) 1247 | -8/Materials | Discovered new exit (range 5) 1250 | -8/Materials | Identified exit to Factory 1251 | -8/Materials | Entered Factory 1251 | -7/Factory | Evolved 2 slots: Utility x2 1420 | -7/Factory | Fabricated T-07 Excavator? 1483 | -7/Factory | Discovered new exit (range 12) 1487 | -7/Factory | Identified exit to Factory 1812 | -7/Factory | Discovered new exit (range 9) 1815 | -7/Factory | Identified exit to Storage 1833 | -7/Factory | Discovered new exit (range 16) 1858 | -7/Factory | Identified exit to Lower Caves 1909 | -7/Factory | Discovered exit to Factory (range 6) 2021 | -7/Factory | Entered Storage 2134 | -7/Storage | Repaired Xenon Bombardment Thruster 2297 | -7/Storage | Core integrity fell below 50% 2309 | -7/Storage | Core integrity fell below 20% 2336 | -7/Storage | Lost 5 parts (1n3u1w) 2339 | -7/Storage | Destroyed by H-55 Commando with Assault Rifle Last Messages --------------- Maul destroyed. Slammed into Y-54 Guardian. K-01 Serf collects debris. Slammed into Y-54 Guardian. M-13 Machinist fits Backup Propulsion I on P-60 Hacker. Slammed into R-06 Scavenger. R-06 Scavenger destroyed. R-06 Scavenger collects Sml. Storage Unit. Acquired 83 matter. Slammed into R-06 Scavenger. Imp. Terrain Scan Processor broken. Destabilizing: Short circuit. Acquired Com. Wheel. System corrupted: Remote Datajack rejected. Acquired Remote Datajack. Slammed into O-24 Administrator. Slammed into W-25 Informer. W-25 Informer sends out distress signal. Penetrated by Slug. Map ----- +----------------------------------------------------+ | ! + ##?#?###?????????????????????????????? | | " " ###########????? ????????????????????????? | | "R" ####?###????#?#??????????????????????????? | | """ #?###????????#???????????????????????????? | | ##????#?#??????? ????????????????????????? | | ################???##????????????????????????????? | | #?##???#??????????????????????????? | | ##?#?#??? ??????????????????????? | | ##???#??? ????????????????????? | | ######### ######## ###? ??? ???? ??????????? | | # # # #?? ?????????????????????? | | # [ # # """ ##? "?"? "???????????????? | | " # % # # """ #?? ???"? ????? ??????????? | | " # # # """ ##? ?????? ????? ???????? | | " # # # """### ???????? ?????????????? | | " # ] + # T"## ? ???? ?? ? ???? ??????? | | ??# # + """## #?#"???????"?????#??????? | | ?## # # ## #?#?"??"???????????????#? | | #?# # #####+###### #??#?#??#???????????#???? | | #?# # ### ##### #??#??#???##?????#??????? | | ??# !+ * #??######???###########?? | | ?## # r #???##T#####?# #?? | | #?#+########## #####m ##?## ***#?# "T" #?? | | ### ##?#####?#######??# o###?# ***#?# #?? | | ??# ####?# ######????##kh##??# #####?# #?? | | ??# ##?? #???#?# @####+######## ##? | | ?## #??? """ #??? ## T # !! """ #?? | | ### ### """ ?# + "" w # /! """ #?? | | # """ ##? # g#######/## + """ #?# | | / ##?? ?## ### ## # #?? | | # """ ## ????# ### ## ##### ####?? | | #+###+# """ ?#??#??# #?# ## T#?#?##????? | | # """ ??##???# Y### ## ##??#??????? | | """ #? ?##????# / #""""???#??????? | | " #??#######??##??## ### #?????????????#? | | ? " #????????????#???# #?# #???????????#??? | | " #??##??########### ### ## ?#?????????? | | ? " #??????# ! ]# ### #???#??????????? | | """ #??##??# # #?# ####???#????#??? | | #???##?# #!#?# ##????#????????? | | ##?##?##! = #*#?# #????#?????????? | | ###############+##/##### #?# ##??????#??????? | | ##?##?# + % #?########??????????????? | | ??????# ############?#??????????#??????????? | | #?????# ???????????#????????#??????????????? | | ??????########????#?#??????#?????????????????????? | | ??????#??#??????????????????#???#?#??????????????? | | | | | | | +----------------------------------------------------+ Best States ------------- Heat Dissipation 34 Energy Generation 14 Energy Capacity 160 Matter Stores 300 Matter Capacity 300 Sight Range 16 Robot Scan Range 15 Terrain Scan Range 16 Terrain Scan Density 110 Evasion (%) 63 Defensive Hacking 10 Trap Extractor Capacity 6 Item Schematics ----------------- None Robot Schematics ------------------ None Fabricated ------------ T-07 Excavator | x1 | -7/Factory | Preloaded Alien Tech Used ----------------- None Achievements -------------- None Challenges ------------ None Game ------ Seed WaveEnhancedFrame Manual? 0 Play Time 00:55:38 Cumulative 21.3 hours Start 2024.04.04 @ 21:11:05 End 2024.04.04 @ 22:07:25 Sessions 1 Manual Loads 0 Difficulty Rogue Special Mode None Game No. 23 Rogue 18 Adventurer 5 Explorer 0 Win Type - Total 1 Types 1/0/0/0/0/0/0/0/0 Lore% 11 Gallery% 28 Achievement% 27 Wizard Run 0 Options --------- Layout 1 ASCII 0 Keyboard 0 Movement Mouse Keybinds 0 Fullscreen 1 Font 24/Terminus Map View 50x35 Zoom Use 0% Tactical HUD 0 Map Filters NONE Filters NONE Steam 1 RUN: 7750ae98-0519-4cc8-89cd-1eb88cc17135